Cogmind - Beta 17.1 @@@ ROGUE MODE // 2026.08.30 @ 16:25:29 Player: +Jones Result: Self-destructed Performance ------------- Evolutions (7) 3500 Regions Visited (20) 4000 Robots Destroyed (247) 1235 Value Destroyed (9643) 9643 Prototype IDs (50) 1000 Alien Tech Used (1) 200 Bonus (21100) 21100 TOTAL SCORE: 40678 Bonus ------- High Alert Combat Kills 126 Follower Combat Kills 765 Prayed to X0-1V1 5000 Major X0-1V1 Interference 12150 Met Data Miner 300 Met Zhirov 300 Met Warlord at Base 500 MAIN.C Attacked Warlord 500 Warlord Defense Kills 1492 Friendly Fire -33 Cogmind --------- Core Integrity 1129/1300 Matter 275/300 Energy 873/900 System Corruption 19% Temperature Cool (0) Movement Rolling (160) Ox4 Location -3/Research Parts ------- > --- POWER (2) -------- (None) > --- PROPULSION (4) --- Armored Huge Wheel Armored Huge Wheel > --- UTILITY (10) ----- Huge Storage Unit Improved Targeting Computer Advanced Weapon Cycler Heavy Reactive Plating X0-1V1's Piety Tracker > --- WEAPON (5) ------- Heavy Phase Cannon Railgun Railgun > --- INVENTORY (25) --- Vortex Chain Reactor Meta Core Biometal Medium Treads Improved Heavy Siege Treads Armored Huge Wheel Centrium Wheel Experimental Cooling System Advanced Coolant Injector High-capacity Storage Unit Advanced Signal Interpreter Improved Transmission Jammer Heavy Armor Plating Long-range Tractor Beam Transdimensional Reconstructor Wave Gun Improved KE Penetrator Precision Grenade Launcher Fusion Bomb Launcher Chaos Jack (28) Advanced Remote Datajack Heavy Scimitar of Distortion Peak State ------------ > --- POWER ------------ Fusion Reactor Reinforced Antimatter Reactor > --- PROPULSION ------- Armored Huge Wheel Armored Huge Wheel > --- UTILITY ---------- Coolant Network Huge Storage Unit Advanced Sensor Array Advanced Signal Interpreter Improved Targeting Computer Experimental Target Analyzer Experimental Thermal Defense Suite Long-range Tractor Beam X0-1V1's Piety Tracker > --- WEAPON ----------- Wave Gun Wave Gun Quantum Rifle Quantum Rifle Heavy Phase Cannon > --- INVENTORY -------- Vortex Chain Reactor Meta Core Medium Treads Medium Treads Improved Heavy Siege Treads Centrium Wheel Experimental Cooling System Advanced Coolant Injector High-capacity Storage Unit Advanced Signal Interpreter Improved Transmission Jammer Mini Drone Bay Transdimensional Reconstructor Long-range Phase Cannon Long-range Phase Cannon Railgun Railgun Precision Grenade Launcher Micro-nuke Launcher Chaos Jack Improved Remote Datajack Improved Remote Datajack Heavy Scimitar of Distortion [Rating: 150] Favorites ----------- Power Reinforced Antimatter Reactor Engine Improved Deuterium Engine Power Core Neutrino Core Reactor Reinforced Antimatter Reactor Propulsion Light Treads Treads Light Treads Leg Carbon-fiber Leg Wheel Armored Huge Wheel Utility X0-1V1's Piety Tracker Device X0-1V1's Piety Tracker Storage High-capacity Storage Unit Processor Advanced Signal Interpreter Hackware Hacking Suite Protection Layered Heavy Armor Plating Weapon Minigun Energy Gun Phase Gun Energy Cannon Heavy Phase Cannon Ballistic Gun Minigun Ballistic Cannon Advanced Assault Cannon Launcher Precision Grenade Launcher Special Weapon Mining Laser Impact Weapon Power Maul Slashing Weapon Chainsword Special Melee Weapon Chaos Jack Build | -11 -10 -10 -8 -7 -7 -7 -7 -6 -6 -5 -5 -5 -5 -4 -4 -4 -4 -4 -3 -3 ------- Run | Yrd Mat Sub Mat Fac Low Low Dat Pro Fac Fac Upp Upp Zhi Pro Fac Upp Upp War Pro Res Slots Evolved 14 | . . . 4 2 . . . . 2 2 . . . . 2 . . . . 2 Power 1 | . . . . . . . . . . . . . . . . . . . . 1 Propulsion 2 | . . . 1 1 . . . . . . . . . . . . . . . . Utility 7 | . . . 1 1 . . . . 2 2 . . . . 1 . . . . . Weapon 4 | . . . 2 . . . . . . . . . . . 1 . . . . 1 Parts Attached 168 | 7 8 6 27 9 5 3 . 11 14 18 3 9 6 . 11 6 1 4 6 14 Power 12 | 1 1 . 5 1 . . . 1 . 1 . 1 1 . . . . . . . Engine 5 | 1 . . 2 1 . . . 1 . . . . . . . . . . . . Core 5 | . 1 . 3 . . . . . . 1 . . . . . . . . . . Reactor 2 | . . . . . . . . . . . . 1 1 . . . . . . . Propulsion 27 | 2 . 2 4 3 . 1 . 2 5 2 1 . 1 . . . . . 2 2 Treads 16 | 2 . 2 4 3 . 1 . 2 1 . . . . . . . . . . 1 Leg 5 | . . . . . . . . . 4 . . . 1 . . . . . . . Wheel 6 | . . . . . . . . . . 2 1 . . . . . . . 2 1 Hover . | . . . . . . . . . . . . . . . . . . . . . Flight . | . . . . . . . . . . . . . . . . . . . . . Utility 61 | 2 3 . 5 1 2 1 . 4 8 6 1 3 2 . 5 4 . 4 1 9 Device 32 | 1 1 . 1 . 1 . . . 7 2 1 2 1 . 2 4 . 3 . 6 Storage 6 | 1 1 . 2 . . . . . . 1 . . 1 . . . . . . . Processor 10 | . . . . . 1 . . 1 . 2 . . . . 3 . . 1 . 2 Hackware 2 | . . . . 1 . 1 . . . . . . . . . . . . . . Protection 11 | . 1 . 2 . . . . 3 1 1 . 1 . . . . . . 1 1 Artifact . | . . . . . . . . . . . . . . . . . . . . . Weapon 68 | 2 4 4 13 4 3 1 . 4 1 9 1 5 2 . 6 2 1 . 3 3 Energy Gun 21 | 1 1 1 5 1 . . . 2 . 2 . . . . 4 2 . . 2 . Energy Cannon 3 | . . . . . . . . . . . . 1 . . 1 . . . . 1 Ballistic Gun 27 | 1 2 2 5 1 3 1 . 2 . 6 . . 2 . . . . . 1 1 Ballistic Cannon 2 | . . . . . . . . . 1 . 1 . . . . . . . . . Launcher 5 | . . . 2 1 . . . . . . . . . . . . 1 . . 1 Special Weapon 2 | . 1 . . . . . . . . . . 1 . . . . . . . . Impact Weapon 3 | . . 1 . 1 . . . . . 1 . . . . . . . . . . Slashing Weapon 4 | . . . 1 . . . . . . . . 2 . . 1 . . . . . Piercing Weapon . | . . . . . . . . . . . . . . . . . . . . . Special Melee Weapon 1 | . . . . . . . . . . . . 1 . . . . . . . . Unidentified Prototypes 18 | . . . 4 2 . . . . . 1 . 1 4 . 1 . . 3 . 2 Corrupted Parts 2 | . . . . . . . . . . . . . . . . . . 1 1 . System Corruption 8 | . . . . . . . . . . . . . . . . . . 4 4 . Parts Lost 45 | . . 8 1 . . 1 . 3 10 . 1 . . . . 1 1 . 9 10 Power 4 | . . 1 . . . . . 1 . . . . . . . . . . . 2 Propulsion 10 | . . 2 . . . 1 . 1 4 . . . . . . . . . 2 . Utility 16 | . . 2 . . . . . 1 2 . 1 . . . . 1 1 . 3 5 Weapon 15 | . . 3 1 . . . . . 4 . . . . . . . . . 4 3 Highest Loss Streak 8 | . . 8 1 . . 1 . 3 5 . 1 . . . . 1 1 . 6 6 To Critical Strikes 3 | . . 1 . . . 1 . . . . . . . . . . . . 1 . Average Backups 17 | . 6 10 16 19 18 18 18 18 17 16 13 15 15 20 20 21 22 21 20 21 Power . | . . . . . . . . . . . . . . 1 1 1 1 1 2 1 Propulsion 2 | . . 1 3 3 3 3 3 3 2 3 3 2 2 2 2 3 3 3 2 3 Utility 5 | . 2 3 5 8 7 8 8 8 7 5 3 2 3 4 5 6 6 5 5 6 Weapon 5 | . 3 4 4 5 4 4 5 4 4 5 5 8 6 8 7 7 8 8 6 5 Tool/Special . | . . . . . . . . . . . . . . . . . . . . . Unused Backups 58 | . . 1 10 6 2 1 . . 3 8 2 3 . . 2 . . . . 20 Power 3 | . . . 1 . . . . . 1 . . . . . . . . . . 1 Propulsion 15 | . . . 4 1 . . . . . 3 . 1 . . . . . . . 6 Utility 17 | . . . 3 2 . 1 . . 1 3 1 . . . . . . . . 6 Weapon 16 | . . 1 2 3 2 . . . 1 1 1 1 . . 2 . . . . 2 Tool/Special 7 | . . . . . . . . . . 1 . 1 . . . . . . . 5 Average Slot Usage (%) 87 | . 99 97 97 99 100 99 100 99 84 87 83 78 64 76 75 76 71 69 70 78 Engine 2 | . 11 5 1 3 7 7 7 5 5 2 . . . . . . . . . . Core 2 | . 2 8 7 3 . . . . . 2 5 1 . . . . . . . . Reactor 2 | . . . . . . . . . . . . 3 4 5 5 5 5 5 5 8 Treads 14 | . 27 26 27 29 30 29 30 26 14 10 4 . . . . . . . . . Wheel 4 | . . . . . . . . . . 4 8 11 11 11 10 10 10 10 9 8 Device 15 | . 10 10 16 9 7 6 7 4 19 21 22 23 23 23 19 21 19 20 21 17 Storage 6 | . 14 14 9 7 7 7 7 6 5 5 5 5 5 5 5 5 5 5 5 4 Processor 4 | . . . . . 6 7 7 6 5 5 5 3 . . 8 8 5 5 5 11 Protection 5 | . 3 2 1 6 7 7 7 8 2 6 5 7 8 11 5 5 5 2 4 3 Energy Gun 7 | . 7 7 11 . . . . 3 2 2 . . . . 12 18 20 17 13 17 Ballistic Gun 14 | . 17 11 20 26 29 26 23 31 15 17 19 13 . 15 . . . . . 1 Peak Build Rating 150 | 7 11 14 42 52 47 41 38 51 66 95 99 110 111 110 133 137 129 139 139 150 Average Rating 75 | 5 7 11 37 45 38 38 38 46 54 83 94 105 97 109 129 131 126 121 124 140 On Entrance 71 | . 7 11 11 40 47 39 38 38 51 62 95 98 108 111 110 132 129 119 139 119 Avg Prop Armor Cover (%) 8 | . . . . . . . . . . 9 8 . . . . . . . . 3 Naked Turns . | . . . . . . . . . . . . . . . . . . . . . Heaviest Build 188 | 12 31 32 63 70 67 69 66 84 90 105 108 127 168 173 165 162 157 176 176 188 Greatest Support 83 | 40 40 40 62 82 80 80 80 83 83 42 56 56 56 56 56 56 56 56 56 56 Greatest Overweight (x) 6 | 1 . 1 1 . . . . 1 1 3 3 2 3 3 5 2 2 3 6 6 Average Overweight (x) 1 | . . . . . . . . . . 2 1 1 1 3 2 2 2 2 2 2 Largest Inventory Capacity 25 | 8 15 15 20 20 20 20 20 20 20 20 20 20 25 25 25 25 25 25 25 25 Average Capacity 20 | 7 10 15 18 20 20 20 20 20 20 20 20 20 20 25 25 25 25 25 25 25 Most Carried 25 | 1 12 15 20 20 20 20 19 20 20 20 20 20 22 25 25 25 25 25 25 25 Average Carried 18 | . 6 10 16 19 19 19 19 19 18 18 17 19 18 23 23 24 25 24 22 23 Final Capacity 25 | 8 15 15 20 20 20 20 20 20 20 20 20 20 25 25 25 25 25 25 25 25 Final Carried 25 | 1 12 7 20 20 19 19 19 20 19 20 20 19 22 25 25 25 25 25 24 25 Class Distribution -------------------- 29% | Tank 19% | Mutant 12% | Scavenger-Skirmisher 10% | Gunner 9% | Skirmisher 6% | Scavenger-Tank 4% | Scavenger-Executioner 3% | Commander-Tank Dominant Class ---------------- Mutant | -10/Materials Mutant | -10/Subcaves Gunner | -8/Materials Scavenger-Tank | -7/Factory Scavenger-Skirmisher | -7/Lower Caves Scavenger-Skirmisher | -7/Lower Caves Scavenger-Skirmisher | -7/Data Miner Scavenger-Executioner | -6/Proximity Caves Scavenger-Mutant | -6/Factory Tank | -5/Factory Tank | -5/Upper Caves Mutant | -5/Upper Caves Mutant | -5/Zhirov Tank | -4/Proximity Caves Tank | -4/Factory Tank | -4/Upper Caves Skirmisher | -4/Upper Caves Commander-Tank | -4/Warlord Tank | -3/Proximity Caves Skirmisher | -3/Research Resources | -11 -10 -10 -8 -7 -7 -7 -7 -6 -6 -5 -5 -5 -5 -4 -4 -4 -4 -4 -3 -3 ----------- Run | Yrd Mat Sub Mat Fac Low Low Dat Pro Fac Fac Upp Upp Zhi Pro Fac Upp Upp War Pro Res Matter Collected 10253 | 286 388 109 1132 1143 251 707 . 977 512 601 847 543 312 159 586 108 98 512 585 397 Remotely 29 | . . . . . . . . . . . . . . . . . . . . 29 Salvage Created 9757 | 162 483 89 1459 462 189 255 . 732 498 1055 736 68 312 . 295 694 311 268 678 1011 Parts 421 | 8 24 13 82 23 9 15 . 23 22 60 23 6 2 . 17 24 2 7 31 30 Haulers Intercepted 9 | . 2 . 4 1 . . . . . 1 . . . . . . . . . 1 Recyclers Shooed 4 | . 1 . 1 . . . . . . . 1 . . . . . . . . 1 Parts Field Recycled . | . . . . . . . . . . . . . . . . . . . . . Retrieved Matter . | . . . . . . . . . . . . . . . . . . . . . Parts Self-Destructed 90 | . . 8 . . 3 9 . 19 . . 6 6 . 5 . 15 . . 19 . Prevented 4 | . . . . . . 2 . . . . 2 . . . . . . . . . Parts Restored . | . . . . . . . . . . . . . . . . . . . . . Kills | -11 -10 -10 -8 -7 -7 -7 -7 -6 -6 -5 -5 -5 -5 -4 -4 -4 -4 -4 -3 -3 ------- Run | Yrd Mat Sub Mat Fac Low Low Dat Pro Fac Fac Upp Upp Zhi Pro Fac Upp Upp War Pro Res Combat Hostiles Destroyed 199 | . 9 6 19 7 3 13 . 22 11 18 10 6 . 2 7 13 7 13 19 14 Melee 4 | . . . 3 . . . . . . . . . . . . . . . 1 . Guns 93 | . 9 6 13 7 2 2 . 11 11 10 2 . . . 2 9 1 . . 8 Cannons 5 | . . . . . . . . . . . . . . . 1 . . . 2 2 AOE 94 | . . . 3 . 1 11 . 11 . 7 8 6 . 2 4 3 6 13 16 3 Classes Destroyed 24 | 2 5 1 5 1 . 2 . 2 1 1 1 . . . 1 . . 1 1 . Worker 9 | . . . 4 2 . . . . . 1 . . . . 1 . . . . 1 Builder 5 | . 1 . 1 . . . . . 1 2 . . . . . . . . . . Tunneler 3 | 3 . . . . . . . . . . . . . . . . . . . . Hauler 9 | . 2 . 4 1 . . . . . 1 . . . . . . . . . 1 Recycler 10 | 1 . . 5 2 . . . . . 1 . . . . . . . . . 1 Minesweeper 2 | . . . . . . 1 . . . . 1 . . . . . . . . . Mechanic 1 | . . . . . . . . . . . . . . . 1 . . . . . Operator 2 | . . . 1 . . . . . . 1 . . . . . . . . . . Drone 5 | . . . . . . 1 . 2 . . . . . 2 . . . . . . Watcher 6 | . 3 . 2 . . . . . . . . . . . . . . . . 1 Swarmer 68 | . 3 4 3 3 . 6 . 4 1 7 3 6 . . 4 7 . . 12 5 Saboteur 3 | . . . . . . . . . . . . . . . . . . 3 . . Grunt 63 | . 6 . 7 1 2 6 . 11 5 . 6 . . . 1 5 2 7 4 . Brawler 5 | . . . 1 . . . . 1 1 . . . . . . . 2 . . . Duelist 3 | . . . . . . . . 2 1 . . . . . . . . . . . Protector 1 | . . . . . . . . 1 . . . . . . . . . . . . Sentry 21 | . . . 7 1 . . . 1 1 1 1 . . . 1 1 1 . 1 5 Hunter 7 | . . . 1 . . . . . 1 3 . . . . . . 2 . . . Programmer 19 | . . . . 2 1 . . . . 7 . . . . 1 . . 3 1 4 Heavy 1 | . . . . . . . . . 1 . . . . . . . . . . . Behemoth 1 | . . . . . . . . . . . . . . . . . . . 1 . Subdweller 2 | . . 2 . . . . . . . . . . . . . . . . . . Decomposer 7 | . . . . . 4 2 . . . . . 1 . . . . . . . . Packrat 3 | . . . . . . . . . . . 2 . . . . . . . 1 . Samaritan 7 | . . . . . . . . . . . 5 . . . . 2 . . . . Fireman 2 | . . . . . . . . . . 2 . . . . . . . . . . Best Kill Streak 13 | 4 5 4 7 2 2 6 . 7 5 7 9 4 . 2 4 5 5 13 10 6 Combat Bots Only 13 | . 3 4 6 2 2 6 . 7 5 6 9 4 . 2 4 5 5 13 10 5 Max Kills in Single Turn 6 | 1 2 2 3 1 1 3 . 2 2 6 2 2 . 2 3 3 2 4 3 2 Gunslinging 1 | . 1 1 . . . . . . 1 . . . . . . 1 . . . . Exploded 5 | . . . 2 . 1 3 . 2 . 5 2 2 . 2 3 3 2 4 3 2 Melee 1 | . . . 1 . . . . . . . . . . . . . . . 1 . Uniques/NPCs Destroyed . | . . . . . . . . . . . . . . . . . . . . . Combat | -11 -10 -10 -8 -7 -7 -7 -7 -6 -6 -5 -5 -5 -5 -4 -4 -4 -4 -4 -3 -3 -------- Run | Yrd Mat Sub Mat Fac Low Low Dat Pro Fac Fac Upp Upp Zhi Pro Fac Upp Upp War Pro Res Hostile Shots Fired 834 | . 47 50 58 39 5 56 . 66 122 50 22 29 . 22 11 58 28 34 98 39 Missed 252 | . 13 13 18 11 . 16 . 15 35 20 9 10 . 7 8 17 7 12 27 14 Hits 582 | . 34 37 40 28 5 40 . 51 87 30 13 19 . 15 3 41 21 22 71 25 Melee 34 | . . . 1 . . 23 . 3 7 . . . . . . . . . . . Projectile 548 | . 34 37 39 28 5 17 . 48 80 30 13 19 . 15 3 41 21 22 71 25 AOE 10 | . . 3 . . . . . . 1 . . . . . . . . 6 . . Critical Strikes 26 | . 2 1 2 . . 3 . 2 3 1 1 . . 1 . 1 1 1 5 2 Part Disruptions 3 | . . . . . . . . . . 1 . . . . . . . 1 1 . Damage Taken 10761 | . 420 775 655 364 66 372 . 1021 1042 436 163 312 . 295 47 683 466 515 1597 1532 Core 785 | . 44 77 68 . . 50 . 49 112 36 . 15 . . . 52 22 7 82 171 Absorbed by Shields 1308 | . . . . . . . . . 389 160 60 115 . 107 18 93 . 304 62 . Reduced by Siege Mode 9 | . . . . . . . . . . . . . . . . . . . . 9 Ignored by Resistances 551 | . . . . 26 8 . . . . 105 . . . . . . . 78 202 132 Regen/Repaired (Parts) 369 | . 217 . . 72 . . . . . . . . . . . . . 80 . . Core Remaining (%) 84 | 100 . 51 91 . . . . 85 86 . . . . 94 . . . . 85 . Volleys Fired 515 | 16 50 22 57 19 9 22 . 33 38 30 25 25 . 1 14 21 15 10 25 83 Largest 7 | 2 2 2 4 4 4 4 . 7 6 4 4 1 . 1 4 4 4 4 4 5 Hottest 440 | 70 100 112 190 99 110 114 . 239 176 141 135 90 . 36 347 358 345 345 359 440 Shots Fired 1351 | 32 96 43 188 75 37 61 . 109 138 102 70 27 . 1 35 60 28 12 46 191 Gun 1139 | 32 92 43 183 75 36 49 . 97 136 99 64 2 . . 21 52 16 4 21 117 Cannon 133 | . . . . . . . . . 2 . . 22 . . 12 7 4 2 12 72 Launcher 75 | . . . 5 . 1 12 . 12 . 3 6 3 . 1 2 1 8 6 13 2 Special 4 | . 4 . . . . . . . . . . . . . . . . . . . Kinetic 792 | 16 62 29 131 75 36 49 . 94 135 88 64 2 . . . . . . . 11 Thermal 477 | 16 34 14 55 . . . . 3 1 3 . 22 . . 33 59 20 6 33 178 Explosive 72 | . . . 2 . 1 12 . 12 . 3 6 3 . 1 2 1 8 6 13 2 Electromagnetic 10 | . . . . . . . . . 2 8 . . . . . . . . . . Robot Hit Streak 32 | 8 15 11 14 7 7 9 . 10 10 7 16 7 . . 15 22 4 7 12 32 Robot Miss Streak 7 | 5 4 3 4 5 1 5 . 3 6 7 2 . . . 2 2 3 1 1 5 Penetration Max 2 | . . . . . . . . . . 2 1 . . . . . . . . . Secondary Targets 13 | . 2 2 2 . . . . 1 4 . . . . . . 2 . . . . Max Gunslinging Chain 2 | . 1 1 1 . . . . 1 2 . . . . . . 1 . . . . Shots Hit Robots 803 | 21 60 34 117 42 20 30 . 62 98 61 49 9 5 . 23 35 7 5 33 92 Core Hits 563 | 6 26 9 58 25 9 26 . 60 79 55 27 12 3 2 15 23 17 35 37 39 Critical Kills 6 | . . . . 2 . . . . . 1 2 . . . . . . . . 1 Critical Parts Destroyed 8 | . . . . 1 . . . . . 3 4 . . . . . . . . . Critical Strikes 30 | 1 2 . 7 3 . . . . . 4 6 . . . 2 2 . . . 3 Burn 13 | 1 2 . 4 . . . . . . . . . . . 2 2 . . . 2 Meltdown 1 | . . . . . . . . . . . . . . . . . . . . 1 Destroy 12 | . . . . 3 . . . . . 4 5 . . . . . . . . . Smash 1 | . . . . . . . . . . . 1 . . . . . . . . . Sever 3 | . . . 3 . . . . . . . . . . . . . . . . . Melee Attacks 75 | . . 13 19 6 . 1 . . 1 2 13 8 5 . . . . . 7 . Impact 32 | . . 13 3 1 . . . . . 2 13 . . . . . . . . . Slashing 36 | . . . 16 5 . 1 . . 1 . . 1 5 . . . . . 7 . Piercing 7 | . . . . . . . . . . . . 7 . . . . . . . . Sneak Attacks 14 | . . . 1 2 . 1 . . . . 4 6 . . . . . . . . Combat Hostiles . | . . . . . . . . . . . . . . . . . . . . . Follow-up Attacks 2 | . . . 2 . . . . . . . . . . . . . . . . . Damage Inflicted 30041 | 216 657 549 2579 925 364 1774 . 2855 1738 2381 2205 896 482 141 967 1396 1441 2494 2919 3062 Guns 13178 | 216 653 549 1641 708 315 341 . 963 1733 1249 469 7 . . 413 949 204 100 407 2261 Cannons 1012 | . . . . . . . . . . . . . . . 253 204 . . 173 382 Explosions 13547 | . . . 436 . 49 1361 . 1892 . 1086 1248 723 . 141 301 243 1237 2394 2017 419 Melee 2237 | . . . 496 211 . 72 . . . . 488 166 482 . . . . . 322 . Ramming 67 | . 4 . 6 6 . . . . 5 46 . . . . . . . . . . Kinetic 7774 | 68 384 377 1250 708 315 341 . 906 1688 1121 469 7 . . . . . . . 140 Thermal 7083 | 148 269 172 558 . . . . 57 . 673 . . . . 666 1153 204 100 580 2503 Explosive 12794 | . . . 269 . 49 1361 . 1892 . 500 1248 723 . 141 301 243 1237 2394 2017 419 Electromagnetic 86 | . . . . . . . . . 45 41 . . . . . . . . . . Impact 676 | . . . 68 120 . . . . . . 488 . . . . . . . . . Slashing 1540 | . . . 428 91 . 72 . . . . . 145 482 . . . . . 322 . Piercing 21 | . . . . . . . . . . . . 21 . . . . . . . . Highest Corruption 24 | . . . 2 5 5 . . 10 . 7 24 17 17 17 . . 19 22 4 13 Average Corruption 7 | . . . 2 4 5 . . 10 . 4 9 17 17 17 . . 10 14 4 3 Corruption Purged . | . . . . . . . . . . . . . . . . . . . . . Corruption Blocked . | . . . . . . . . . . . . . . . . . . . . . Effects 229 | . . . 20 11 14 . . 32 . 36 5 13 12 3 . . 27 38 10 8 Message Errors 69 | . . . 3 2 4 . . 11 . 11 1 5 6 . . . 9 14 3 . Matter Fused 49 | . . . 7 3 1 . . 4 . 9 1 6 1 . . . 7 5 3 2 Heat Flow Errors 27 | . . . 6 1 4 . . 1 . 4 . . 1 2 . . 2 4 . 2 Energy Discharges 35 | . . . 2 1 2 . . 8 . 4 1 . 2 1 . . 3 7 3 1 Parts Rejected 1 | . . . . . . . . . . . . . . . . . . . 1 . Parts Fused 2 | . . . . . . . . . . . . . . . . . 1 1 . . Data Loss (minor) 20 | . . . . . 1 . . 5 . 5 2 . . . . . 3 3 . 1 Data Loss (major) 6 | . . . . 2 1 . . . . . . . 1 . . . 1 1 . . Misfires 10 | . . . . 1 1 . . 3 . 2 . 1 . . . . 1 . . 1 Alerts 3 | . . . . 1 . . . . . . . 1 1 . . . . . . . Misdirections 2 | . . . . . . . . . . . . . . . . . . 2 . . Weapon Failures 5 | . . . 2 . . . . . . 1 . . . . . . . 1 . 1 Overload Shots 1 | . . . . . . . . . 1 . . . . . . . . . . . Overflow Damage 1122 | . . . 69 90 . 60 . 16 . 98 211 179 59 . 9 70 57 93 106 5 Projectiles 74 | . . . . . . . . . . . . . . . . 55 . . 14 5 Explosions 483 | . . . . . . 60 . 16 . 95 4 42 . . 9 15 57 93 92 . Melee 565 | . . . 69 90 . . . . . 3 207 137 59 . . . . . . . Knockbacks 2 | . . . 1 1 . . . . . . . . . . . . . . . . Impact 2 | . . . 1 1 . . . . . . . . . . . . . . . . Kinetic . | . . . . . . . . . . . . . . . . . . . . . Secondary . | . . . . . . . . . . . . . . . . . . . . . Self-Inflicted Damage 333 | . . . . . . 23 . 16 . 114 . 35 . 28 . . . . 117 . Shots 8 | . . . . . . 1 . 1 . 1 . 1 . 1 . . . . 3 . Rammed 7 | . 2 . 1 1 . . . . 1 2 . . . . . . . . . . Targets Rammed 8 | . 2 . 1 2 . . . . 1 2 . . . . . . . . . . Kicked . | . . . . . . . . . . . . . . . . . . . . . Crushed 1 | . . . . 1 . . . . . . . . . . . . . . . . Highest Temperature 429 | 100 296 18 317 301 202 206 . 375 429 128 4 . 181 213 . 112 158 151 . 408 Average Temperature 87 | 36 62 10 81 75 67 88 . 129 176 49 4 . 108 94 . 45 69 84 . 112 Received Heat Transfer 1995 | . 231 6 234 45 27 117 . 234 166 40 55 54 . 300 6 102 114 18 219 27 Effects 3 | . . . 1 . . . . 1 1 . . . . . . . . . . . Shutdowns 2 | . . . . . . . . 1 1 . . . . . . . . . . . Interference 1 | . . . 1 . . . . . . . . . . . . . . . . . Siege Activations 3 | . . . . . . . . . . . . . . . . . . . . 3 Total Turns 87 | . . . . . . . . . . . . . . . . . . . . 87 Longest Duration 49 | . . . . . . . . . . . . . . . . . . . . 49 Martial Activations . | . . . . . . . . . . . . . . . . . . . . . Shielding Activations . | . . . . . . . . . . . . . . . . . . . . . Robots Disrupted . | . . . . . . . . . . . . . . . . . . . . . Combat Hostiles . | . . . . . . . . . . . . . . . . . . . . . Robots Corrupted 3 | . . . . 1 . . . . . . 2 . . . . . . . . . Combat Hostiles . | . . . . . . . . . . . . . . . . . . . . . Parts Fried 5 | . . . . 2 . . . . . . 3 . . . . . . . . . Impact Corruptions 17 | . . . . 1 . . . . . 1 15 . . . . . . . . . Robots Melted 2 | . . . . . . . . . . . . . . . . 1 . . . 1 Combat Hostiles 2 | . . . . . . . . . . . . . . . . 1 . . . 1 Parts Melted 28 | 2 . . 2 . . . . . . . . . . . 2 3 . . . 19 Heat Transferred 11036 | 518 925 347 1591 . . . . 125 . 500 . . . . 999 1480 259 148 740 3404 Parts Sabotaged . | . . . . . . . . . . . . . . . . . . . . . Parts Stolen 1 | . . . . . . 1 . . . . . . . . . . . . . . Parts Stripped . | . . . . . . . . . . . . . . . . . . . . . Power Chain Reactions 1 | . . . . . . . . . . 1 . . . . . . . . . . Alert | -11 -10 -10 -8 -7 -7 -7 -7 -6 -6 -5 -5 -5 -5 -4 -4 -4 -4 -4 -3 -3 ------- Run | Yrd Mat Sub Mat Fac Low Low Dat Pro Fac Fac Upp Upp Zhi Pro Fac Upp Upp War Pro Res Maximum Alert Level 2 | . . . 1 . . . . . 2 2 . . . . . . . . . 1 Low Security (%) 77 | 100 100 . 96 100 . . . . . 49 . . . . 100 . . . . 64 Level 1 17 | . . . 3 . . . . . 39 47 . . . . . . . . . 35 Level 2 4 | . . . . . . . . . 60 3 . . . . . . . . . . Level 3 . | . . . . . . . . . . . . . . . . . . . . . Level 4 . | . . . . . . . . . . . . . . . . . . . . . Level 5 . | . . . . . . . . . . . . . . . . . . . . . High Security . | . . . . . . . . . . . . . . . . . . . . . Max Security . | . . . . . . . . . . . . . . . . . . . . . Sterilizations 1 | . . . . . . . . . 1 . . . . . . . . . . . Peak Influence 507 | 10 82 . 206 89 . . . . 507 486 . . . . 178 . . . . 291 Initial 321 | . . . . 88 . . . . 321 187 . . . . . . . . . 54 Average 110 | 1 20 . 49 32 . . . . 408 234 . . . . 62 . . . . 94 Influence Increases 6694 | 20 285 110 704 265 70 285 . 506 764 1022 205 208 5 63 318 325 150 433 420 536 Destroy 0b10 Robot/C 4240 | . 180 80 380 140 60 260 . 420 320 440 200 160 . 40 200 260 140 300 380 280 Destroy 0b10 Robot/NC 260 | 20 30 . 85 25 . 5 . 15 5 30 5 . 5 10 5 . . . . 20 Destroy Leader 600 | . 40 . 122 42 10 20 . 20 40 82 . 20 . 10 40 20 10 . 40 84 Allied During Kill 209 | . . . . . . . . 6 6 26 . 28 . 3 7 . . 133 . . Successful Hack 113 | . 32 . 24 7 . . . . . 50 . . . . . . . . . . Disable Machine 180 | . . . 15 30 . . . . 15 75 . . . . 15 . . . . 30 Destroy Structure 338 | . 3 . 48 6 . . . . 3 120 . . . . 36 . . . . 122 Advance Influence 300 | . . . . . . . . . 300 . . . . . . . . . . . Lose Combat Pursuer 300 | . . 30 30 15 . . . 45 75 45 . . . . 15 45 . . . . Miscellaneous 154 | . . . . . . . . . . 154 . . . . . . . . . . Influence Decreases 6486 | 20 267 128 510 395 134 285 . 472 415 923 653 168 79 63 224 282 267 104 687 410 Entered New Map 1070 | . . 10 . 106 25 . . . 13 196 179 7 74 . . 36 27 20 349 28 Time Decay 4718 | 20 267 68 442 289 109 275 . 422 262 577 464 161 5 43 224 236 230 64 258 302 Lost Part 380 | . . 40 10 . . 10 . 30 100 . 10 . . . . 10 10 . 80 80 Lost Ally 110 | . . 10 . . . . . 20 40 . . . . 20 . . . 20 . . Purge Threat 208 | . . . 58 . . . . . . 150 . . . . . . . . . . Squads Dispatched 16 | . . . 2 2 . . . 1 . 5 . . . . 1 . . . . 5 Investigation 1 | . . . . . . . . . . . . . . . . . . . . 1 Extermination 10 | . . . . 2 . . . . . 4 . . . . 1 . . . . 3 Reinforcement 4 | . . . 2 . . . . . . 1 . . . . . . . . . 1 Assault 1 | . . . . . . . . 1 . . . . . . . . . . . . Garrison . | . . . . . . . . . . . . . . . . . . . . . Intercept . | . . . . . . . . . . . . . . . . . . . . . Searches Triggered . | . . . . . . . . . . . . . . . . . . . . . Data Miner Redirects 1 | . . . . . . . . . . . . . . . . . . . . 1 Construction Impeded 1 | . . . . . . . . . . 1 . . . . . . . . . . Haulers Reinforced 1 | . . . . . . . . . . . . . . . . . . . . 1 Active Scanning Responses . | . . . . . . . . . . . . . . . . . . . . . Cargo Convoy Interrupts . | . . . . . . . . . . . . . . . . . . . . . Stealth | -11 -10 -10 -8 -7 -7 -7 -7 -6 -6 -5 -5 -5 -5 -4 -4 -4 -4 -4 -3 -3 --------- Run | Yrd Mat Sub Mat Fac Low Low Dat Pro Fac Fac Upp Upp Zhi Pro Fac Upp Upp War Pro Res Distress Signals 10 | . . . 5 . . . . . . . . . . . . . . 2 . 3 Communications Jammed . | . . . . . . . . . . . . . . . . . . . . . Distress Signals . | . . . . . . . . . . . . . . . . . . . . . Times Spotted 290 | . 17 6 27 11 3 14 . 27 21 25 14 13 . 4 8 15 3 47 18 17 Peak Tracking Total 14 | . 3 6 5 3 2 7 . 9 14 5 9 4 . 2 2 5 5 13 7 5 Tactical Retreats 14 | . . 1 2 1 . . . 3 3 2 . . . . 1 1 . . . . Traps | -11 -10 -10 -8 -7 -7 -7 -7 -6 -6 -5 -5 -5 -5 -4 -4 -4 -4 -4 -3 -3 ------- Run | Yrd Mat Sub Mat Fac Low Low Dat Pro Fac Fac Upp Upp Zhi Pro Fac Upp Upp War Pro Res Traps Triggered 8 | . . . . . . . . . . 3 . . . . 2 . . 1 . 2 Indirectly . | . . . . . . . . . . . . . . . . . . . . . Trap Hack Attempts . | . . . . . . . . . . . . . . . . . . . . . Triggered . | . . . . . . . . . . . . . . . . . . . . . Disarmed . | . . . . . . . . . . . . . . . . . . . . . Reprogrammed . | . . . . . . . . . . . . . . . . . . . . . Reused 8 | . . . . . . . . . . . 8 . . . . . . . . . Traps Extracted . | . . . . . . . . . . . . . . . . . . . . . Installed 12 | . . . . . . . . . . . 12 . . . . . . . . . Triggered 8 | . . . . . . . . . . . 8 . . . . . . . . . Most Traps Carried 6 | . . . . . . . . . . . 6 . . . . . . . . . Machines | -11 -10 -10 -8 -7 -7 -7 -7 -6 -6 -5 -5 -5 -5 -4 -4 -4 -4 -4 -3 -3 ---------- Run | Yrd Mat Sub Mat Fac Low Low Dat Pro Fac Fac Upp Upp Zhi Pro Fac Upp Upp War Pro Res Machines Disabled 24 | . . 1 1 2 . 2 . 1 1 5 2 . . . 1 . 1 2 3 2 Max in Single Turn 3 | . . 1 1 1 . 1 . 1 1 3 1 . . . 1 . 1 1 1 1 Garrison Access 3 | . . . . 1 . . . . . 1 . . . . 1 . . . . . Machines Repaired . | . . . . . . . . . . . . . . . . . . . . . Machines Dismantled . | . . . . . . . . . . . . . . . . . . . . . Machines Sabotaged . | . . . . . . . . . . . . . . . . . . . . . Overloaded Fab Kills . | . . . . . . . . . . . . . . . . . . . . . Hacking | -11 -10 -10 -8 -7 -7 -7 -7 -6 -6 -5 -5 -5 -5 -4 -4 -4 -4 -4 -3 -3 --------- Run | Yrd Mat Sub Mat Fac Low Low Dat Pro Fac Fac Upp Upp Zhi Pro Fac Upp Upp War Pro Res Machines Accessed 55 | . 11 1 10 7 . 1 3 . . 13 1 . 2 . 2 1 . 1 . 2 Terminals 31 | . 8 . 9 3 . 1 . . . 8 1 . . . . . . . . 1 Fabricators 2 | . . . . 1 . . . . . . . . . . . . . . . 1 Repair Stations 2 | . 1 . . 1 . . . . . . . . . . . . . . . . Recycling Units 5 | . 2 . . . . . . . . 2 . . . . 1 . . . . . Scanalyzers 4 | . . . 1 1 . . . . . 2 . . . . . . . . . . Garrison Access 3 | . . . . 1 . . . . . 1 . . . . 1 . . . . . Total Hacks 175 | . 33 1 38 19 . 4 28 . . 30 3 . 9 . 3 1 . 1 . 5 Successful 111 | . 23 1 18 10 . 4 28 . . 12 3 . 9 . 1 1 . 1 . . Failed 61 | . 9 . 19 9 . . . . . 17 . . . . 2 . . . . 5 Catastrophic 8 | . . . 1 . . . . . . 5 . . . . . . . . . 2 Database Lockouts 3 | . 1 . 1 . . . . . . 1 . . . . . . . . . . Manual 89 | . 26 . 32 9 . . . . . 18 . . . . . . . . . 4 Terminals 107 | . 27 . 37 9 . 4 . . . 23 3 . . . . . . . . 4 Fabricators 2 | . . . . 1 . . . . . . . . . . . . . . . 1 Repair Stations 8 | . 4 . . 4 . . . . . . . . . . . . . . . . Recycling Units 7 | . 2 . . . . . . . . 3 . . . . 2 . . . . . Scanalyzers 6 | . . . 1 2 . . . . . 3 . . . . . . . . . . Garrison Access 5 | . . . . 3 . . . . . 1 . . . . 1 . . . . . Terminal Hacks 61 | . 6 1 5 . . 4 28 . . 3 3 . 9 . . 1 . 1 . . Record 21 | . 1 . 1 . . 4 6 . . . 3 . 5 . . 1 . . . . Part Schematic 13 | . . . . . . . 13 . . . . . . . . . . . . . Robot Schematic 6 | . . . . . . . 6 . . . . . . . . . . . . . Robot Analysis 8 | . 3 . 1 . . . . . . . . . 4 . . . . . . . Prototype ID Bank 3 | . . . . . . . 3 . . . . . . . . . . . . . Open Door 1 | . . . . . . . . . . . . . . . . . . 1 . . Branch Access Points 1 | . . . . . . . . . . 1 . . . . . . . . . . Alert Level 1 | . . . . . . . . . . 1 . . . . . . . . . . Unreport Threat 2 | . . . 1 . . . . . . 1 . . . . . . . . . . Locate Traps 4 | . 2 . 2 . . . . . . . . . . . . . . . . . Proto ID Catalog 1 | . . 1 . . . . . . . . . . . . . . . . . . Fabricator Hacks 1 | . . . . 1 . . . . . . . . . . . . . . . . Network Status 1 | . . . . 1 . . . . . . . . . . . . . . . . Repair Station Hacks 6 | . 4 . . 2 . . . . . . . . . . . . . . . . Scan Component 3 | . 2 . . 1 . . . . . . . . . . . . . . . . Repair 3 | . 2 . . 1 . . . . . . . . . . . . . . . . Recycling Unit Hacks 4 | . 2 . . . . . . . . 2 . . . . . . . . . . Report Inventory 2 | . 2 . . . . . . . . . . . . . . . . . . . Retrieve Components 2 | . . . . . . . . . . 2 . . . . . . . . . . Scanalyzer 4 | . . . 1 2 . . . . . 1 . . . . . . . . . . Insert Component 1 | . . . 1 . . . . . . . . . . . . . . . . . Retrieve Study 3 | . . . . 2 . . . . . 1 . . . . . . . . . . Garrison Access Hacks 3 | . . . . 1 . . . . . 1 . . . . 1 . . . . . Seal Access 3 | . . . . 1 . . . . . 1 . . . . 1 . . . . . Unauthorized Hacks 32 | . 11 . 12 4 . . . . . 5 . . . . . . . . . . Terminals 32 | . 11 . 12 4 . . . . . 5 . . . . . . . . . . Assimilate 2 | . 2 . . . . . . . . . . . . . . . . . . . Botnet 11 | . 3 . 4 2 . . . . . 2 . . . . . . . . . . Operators 2 | . 1 . 1 . . . . . . . . . . . . . . . . . Skim 17 | . 5 . 7 2 . . . . . 3 . . . . . . . . . . Fabricators . | . . . . . . . . . . . . . . . . . . . . . Repair Stations . | . . . . . . . . . . . . . . . . . . . . . Recycling Units . | . . . . . . . . . . . . . . . . . . . . . Scanalyzers . | . . . . . . . . . . . . . . . . . . . . . Garrison Access . | . . . . . . . . . . . . . . . . . . . . . Data Cores Recovered 1 | . . . . . . . . . . 1 . . . . . . . . . . Used . | . . . . . . . . . . . . . . . . . . . . . Hacking Detections 37 | . 8 . 10 4 . 1 . . . 10 1 . . . 1 . . . . 2 Full Trace Events 1 | . . . . . . . . . . . . . . . . . . . . 1 Feedback Events 1 | . . . . . . . . . . . . . . . . . . . . 1 Corruption 1 | . . . . . . . . . . . . . . . . . . . . 1 Feedback Blocked . | . . . . . . . . . . . . . . . . . . . . . Robot Schematics Acquired 6 | . . . . . . . 6 . . . . . . . . . . . . . Robots Built . | . . . . . . . . . . . . . . . . . . . . . Authchips . | . . . . . . . . . . . . . . . . . . . . . Time . | . . . . . . . . . . . . . . . . . . . . . Total Robot Build Rating . | . . . . . . . . . . . . . . . . . . . . . Part Schematics Acquired 13 | . . . . . . . 13 . . . . . . . . . . . . . Parts Built . | . . . . . . . . . . . . . . . . . . . . . Authchips . | . . . . . . . . . . . . . . . . . . . . . Time . | . . . . . . . . . . . . . . . . . . . . . Total Part Build Rating . | . . . . . . . . . . . . . . . . . . . . . Part Studies Acquired 3 | . . . . 2 . . . . . 1 . . . . . . . . . . Parts Repaired 3 | . 2 . . 1 . . . . . . . . . . . . . . . . Time 90 | . 52 . . 38 . . . . . . . . . . . . . . . . Parts Recycled . | . . . . . . . . . . . . . . . . . . . . . Recycled Matter . | . . . . . . . . . . . . . . . . . . . . . Retrieved Matter . | . . . . . . . . . . . . . . . . . . . . . Retrieved Components 3 | . . . . . . . . . . 3 . . . . . . . . . . Parts Scanalyzed . | . . . . . . . . . . . . . . . . . . . . . Part Schematics Acquired . | . . . . . . . . . . . . . . . . . . . . . Parts Damaged . | . . . . . . . . . . . . . . . . . . . . . Bothacking | -11 -10 -10 -8 -7 -7 -7 -7 -6 -6 -5 -5 -5 -5 -4 -4 -4 -4 -4 -3 -3 ------------ Run | Yrd Mat Sub Mat Fac Low Low Dat Pro Fac Fac Upp Upp Zhi Pro Fac Upp Upp War Pro Res Used RIF Installer . | . . . . . . . . . . . . . . . . . . . . . Robots Hacked . | . . . . . . . . . . . . . . . . . . . . . Non-combat . | . . . . . . . . . . . . . . . . . . . . . Combat . | . . . . . . . . . . . . . . . . . . . . . Robot Hacks Applied . | . . . . . . . . . . . . . . . . . . . . . Relay Couplers Released . | . . . . . . . . . . . . . . . . . . . . . Fabnet Peak Effective % . | . . . . . . . . . . . . . . . . . . . . . Robots Rewired 7 | . . . . . . . . 1 . . . . . . . . 1 5 . . Allies Hacked . | . . . . . . . . . . . . . . . . . . . . . Hacks Repelled . | . . . . . . . . . . . . . . . . . . . . . Allies | -11 -10 -10 -8 -7 -7 -7 -7 -6 -6 -5 -5 -5 -5 -4 -4 -4 -4 -4 -3 -3 -------- Run | Yrd Mat Sub Mat Fac Low Low Dat Pro Fac Fac Upp Upp Zhi Pro Fac Upp Upp War Pro Res Total Allies 18 | . 1 . . . . . . 1 2 3 . 2 . . 3 . 1 5 . . Largest Group 6 | . 1 1 . . . . . 1 2 3 . 2 1 1 3 . 1 6 4 . Highest-Rated Group 314 | . 10 10 . . . . . 32 64 168 . 304 85 85 141 . 47 314 211 . Highest-Rated Ally 219 | . 10 10 . . . . . 32 32 56 . 219 85 85 47 . 47 64 64 . Total Orders . | . . . . . . . . . . . . . . . . . . . . . Ally Attacks 88 | . . . . . . . . 7 8 22 . 11 . 9 11 . . 17 3 . Total Damage 3380 | . . . . . . . . 126 194 802 . 848 . 561 319 . . 486 44 . Kills 22 | . . . . . . . . 2 4 4 . 6 . 2 2 . . 2 . . Allies Corrupted . | . . . . . . . . . . . . . . . . . . . . . Allies Melted . | . . . . . . . . . . . . . . . . . . . . . X0-1V1 Amusement Gains 206 | . 13 . 25 20 . . . . . . . 4 2 . 10 . . 40 22 70 Average Entertainment 15 | . 12 5 23 19 22 8 . 2 11 11 2 . . 2 11 6 2 13 45 57 Good Acts 96 | . . . 7 6 5 3 . 2 15 9 4 23 . 3 5 2 2 2 2 6 Bad Acts 79 | . . 2 6 3 3 3 . 4 14 10 2 7 . . 2 2 9 6 4 2 Intel | -11 -10 -10 -8 -7 -7 -7 -7 -6 -6 -5 -5 -5 -5 -4 -4 -4 -4 -4 -3 -3 ------- Run | Yrd Mat Sub Mat Fac Low Low Dat Pro Fac Fac Upp Upp Zhi Pro Fac Upp Upp War Pro Res Active Infowar (turns) 14391 | 55 1161 646 1633 331 1330 1030 125 776 208 1748 523 . . . . 854 768 1329 621 1253 Sensors 10378 | . . . . . 1330 1030 125 776 208 1748 523 . . . . 667 768 1329 621 1253 Seismic 3826 | 55 1161 646 1633 331 . . . . . . . . . . . . . . . . Jamming 372 | . . . . . . . . . . . . . . . . 187 . . 101 84 Robot Analysis Total 8 | . 3 . 1 . . . . . . . . . 4 . . . . . . . Derelict Logs Recovered 11 | . . 1 . . 2 1 . 2 . . 1 1 . 1 . 1 1 . . . Drone Launches . | . . . . . . . . . . . . . . . . . . . . . Drone Recoveries . | . . . . . . . . . . . . . . . . . . . . . Exploration | -11 -10 -10 -8 -7 -7 -7 -7 -6 -6 -5 -5 -5 -5 -4 -4 -4 -4 -4 -3 -3 ------------- Run | Yrd Mat Sub Mat Fac Low Low Dat Pro Fac Fac Upp Upp Zhi Pro Fac Upp Upp War Pro Res Turns Passed 19982 | 119 1532 847 1852 932 1334 1034 125 1126 577 1763 1168 834 307 666 705 925 768 1329 753 1286 Spaces Moved 11063 | 45 685 448 769 483 800 595 79 478 202 1072 763 579 217 413 439 626 492 824 386 668 Core 10 | 10 . . . . . . . . . . . . . . . . . . . . Treads 4486 | 35 685 448 769 483 800 595 79 478 113 1 . . . . . . . . . . Legs 89 | . . . . . . . . . 89 . . . . . . . . . . . Wheels 6478 | . . . . . . . . . . 1071 763 579 217 413 439 626 492 824 386 668 Hover . | . . . . . . . . . . . . . . . . . . . . . Flight . | . . . . . . . . . . . . . . . . . . . . . Fastest Speed 50 | 50 160 160 155 156 160 160 160 160 120 130 115 115 115 145 130 130 130 130 130 130 Average Speed 148 | 138 160 160 185 156 160 160 160 208 191 139 124 123 124 145 130 130 130 134 133 138 Slowest Speed 317 | 160 160 240 246 160 160 160 160 240 240 317 145 130 145 145 175 130 130 145 190 190 Overloaded Moves . | . . . . . . . . . . . . . . . . . . . . . Propulsion Burnouts . | . . . . . . . . . . . . . . . . . . . . . Robots Hopped . | . . . . . . . . . . . . . . . . . . . . . Potential Cave-ins 39 | . . . . . 2 . . . . . . 18 . . . . . 5 . 14 Cave-ins Triggered 3 | . . . . . . . . . . . . . . . . . . . . 3 Exploration Rate (%) 53 | 5 99 18 64 14 98 79 69 57 4 30 60 69 61 64 13 72 68 91 63 23 Regions Visited 20 Branch Regions 13 Pre-discovered Areas 9 | . 3 1 1 . . . 1 . . . . . 3 . . . . . . . Known Exits Taken 18 | . 1 1 1 1 1 1 1 1 1 1 1 1 . 1 1 1 1 1 1 . Unknown Exits Taken 2 | 1 . . . . . . . . . . . . 1 . . . . . . . Scrap Searched 26 | . . 2 . . 4 4 . 4 . . 2 3 . 4 . 2 . . 1 . Spaces Dug 76 | . 3 3 2 2 . . . . 3 2 4 21 . . 2 . 4 2 4 24 Terrain Destroyed 794 | . 4 4 52 2 17 64 . 84 3 59 30 81 . 12 16 17 80 28 165 76 Melee 13 | . . 3 2 2 . . . . . 2 4 . . . . . . . . . Projectile 132 | . 4 1 . . . . . . 3 2 4 22 . . 4 15 7 2 10 58 AOE 641 | . . . 50 . 17 64 . 84 . 53 20 56 . 12 12 2 73 25 155 18 Terrain Rammed . | . . . . . . . . . . . . . . . . . . . . . Walls Destroyed . | . . . . . . . . . . . . . . . . . . . . . Machines Disabled . | . . . . . . . . . . . . . . . . . . . . . Actions | -11 -10 -10 -8 -7 -7 -7 -7 -6 -6 -5 -5 -5 -5 -4 -4 -4 -4 -4 -3 -3 --------- Run | Yrd Mat Sub Mat Fac Low Low Dat Pro Fac Fac Upp Upp Zhi Pro Fac Upp Upp War Pro Res Total 13707 | 69 1017 511 1061 613 840 642 78 561 321 1276 914 678 249 480 552 696 597 1030 577 945 Wait 1208 | 1 254 9 109 57 12 4 . 18 29 67 38 15 . 58 32 31 80 149 134 111 Move 11042 | 44 684 447 768 482 799 594 78 477 201 1071 762 578 216 412 438 625 491 823 385 667 Hop . | . . . . . . . . . . . . . . . . . . . . . Pick Up 192 | 1 10 5 38 11 6 5 . 6 6 21 22 12 3 4 16 4 . 3 4 15 Fast Attach 73 | 7 2 . 3 3 . 2 . 5 5 11 1 4 8 . 2 2 . 5 3 10 Attach 98 | . . 8 8 4 4 2 . 4 16 11 3 6 2 . 6 1 . 2 9 12 Detach 73 | . . . 5 2 1 1 . 2 14 14 4 6 7 . 2 2 . 2 4 7 Swap 157 | . 12 4 26 13 3 7 . 10 5 14 10 9 1 2 10 7 5 3 6 10 Drop 193 | . 3 2 29 14 6 4 . 4 5 33 24 15 7 3 16 3 . 4 . 21 Fire 515 | 16 50 22 57 19 9 22 . 33 38 30 25 25 . 1 14 21 15 10 25 83 Melee 73 | . . 13 17 6 . 1 . . 1 2 13 8 5 . . . . . 7 . Ram 2 | . . . . . . . . . . 2 . . . . . . . . . . Kick . | . . . . . . . . . . . . . . . . . . . . . Crush 6 | . 2 . 1 2 . . . . 1 . . . . . . . . . . . Escape Stasis 26 | . . 1 . . . . . . . . . . . . 16 . . . . 9 Rewire 37 | . . . . . . . . 2 . . . . . . . . 6 29 . . Trap 12 | . . . . . . . . . . . 12 . . . . . . . . . Miscellaneous . | . . . . . . . . . . . . . . . . . . . . . Route ------- -11/Scrapyard -10/Materials (discovered 6 exits: *Mat x3 / [*Min x2] / *Sub) -10/Subcaves (discovered 2 exits: *Mat x2) -8/Materials (discovered 5 exits: *Fac x3 / *Sto x2) -7/Factory (discovered 2 exits: Fac / *Low) -7/Lower Caves -7/Lower Caves (discovered 2 exits: *Fac / *Dat) -7/Data Miner -6/Proximity Caves -6/Factory -5/Factory (discovered 5 exits: *Fac x3 / *Upp x2) -5/Upper Caves -5/Upper Caves (discovered 2 exits: *Fac / *Zhi) -5/Zhirov -4/Proximity Caves -4/Factory (discovered 2 exits: *Upp / Ext) -4/Upper Caves -4/Upper Caves (discovered 2 exits: Res / *War) -4/Warlord -3/Proximity Caves -3/Research (discovered 3 exits: Res / *Arm / *Qua) History --------- Turn | Location | Event 10 | -11/Scrapyard | Discovered new exit (range 16) 120 | -11/Scrapyard | Entered Materials 181 | -10/Materials | Discovered new exit (range 15) 307 | -10/Materials | Build established: Mutant 318 | -10/Materials | Discovered new exit (range 3) 490 | -10/Materials | Discovered new exit (range 11) 569 | -10/Materials | Identified exit to Materials 610 | -10/Materials | Learned Storage stockpile data 643 | -10/Materials | Learned location of Subcaves (-10) 665 | -10/Materials | Identified exit to Subcaves 679 | -10/Materials | Learned location of 2 exits from Materials 682 | -10/Materials | Learned location of Mines (-9) 742 | -10/Materials | Learned location of Storage (-8) 1399 | -10/Materials | Central database locked down 1487 | -10/Materials | Repaired Lgt. Treads 1515 | -10/Materials | Repaired Lgt. Treads 1601 | -10/Materials | Prayed at D.C.S.S. Altar Unit 1652 | -10/Materials | Entered Subcaves 1652 | -10/Subcaves | Accompanied by 1 ally 1653 | -10/Subcaves | Identified exit to Materials 1732 | -10/Subcaves | Learned location of Zion (-6) 1732 | -10/Subcaves | Met a Zionite searching for "candidates" 1735 | -10/Subcaves | A swath of the cavern ceiling suddenly collapsed 1813 | -10/Subcaves | Learned Materials emergency access door positions 1882 | -10/Subcaves | Visited 4L-MR0's lab 1902 | -10/Subcaves | Found Meta Core 1978 | -10/Subcaves | Shifting Twisted Machinery released Shrapnel Trap 2021 | -10/Subcaves | Shifting Twisted Machinery released Spk. Treads 2189 | -10/Subcaves | Lost 8 parts (1p2n2u3w) 2499 | -10/Subcaves | Entered Materials 2499 | -8/Materials | Evolved 4 slots: Propulsion x1, Utility x1, Weapon x2 2500 | -8/Materials | Identified exit to Factory 2777 | -8/Materials | Discovered new exit (range 15) 3071 | -8/Materials | Build established: Gunner 3138 | -8/Materials | Discovered exit to Factory (range 15) 3291 | -8/Materials | Energy generation permanently improved by X0-1V1 (+10; -100 max core) 3762 | -8/Materials | Central database locked down 3820 | -8/Materials | Learned Storage trap positions 3868 | -8/Materials | Learned Storage stockpile data 3898 | -8/Materials | Sensors blinded by X0-1V1 3905 | -8/Materials | Learned Storage stockpile data 3934 | -8/Materials | Learned location of 2 exits from Factory 3952 | -8/Materials | Learned 4 Recycling zone layouts 3984 | -8/Materials | Learned location of 1 exit from Storage 3995 | -8/Materials | X0-1V1 sent hostile B-36 Bruiser (x1) 4016 | -8/Materials | Learned location of 1 exit from Storage 4060 | -8/Materials | Learned Storage trap positions 4256 | -8/Materials | Identified exit to Storage 4256 | -8/Materials | X0-1V1 revealed exit location to -8/Storage 4351 | -8/Materials | Entered Factory 4351 | -7/Factory | Evolved 2 slots: Propulsion x1, Utility x1 4352 | -7/Factory | Identified exit to Lower Caves 4352 | -7/Factory | Identified exit to Factory 4649 | -7/Factory | Build established: Scavenger-Tank 4961 | -7/Factory | EM resistance permanently improved by X0-1V1 (+20%; -200 max core) 5133 | -7/Factory | Repaired Adv. Treads 5151 | -7/Factory | X0-1V1 announced a LAN party 5283 | -7/Factory | Entered Lower Caves 5314 | -7/Lower Caves | Learned Factory terminal intel 5429 | -7/Lower Caves | Found DCF Scrap (12 items) 5583 | -7/Lower Caves | Build established: Scavenger-Skirmisher 5700 | -7/Lower Caves | X0-1V1 vaporized surrounding terrain (radius 24) 5788 | -7/Lower Caves | X0-1V1 activates XOMVISION 6009 | -7/Lower Caves | Learned Factory trap positions 6043 | -7/Lower Caves | Discovered new exit (range 5) 6048 | -7/Lower Caves | Identified exit to Lower Caves 6067 | -7/Lower Caves | Core integrity permanently improved by X0-1V1 (+300) 6617 | -7/Lower Caves | Entered another Lower Caves area 6635 | -7/Lower Caves | Discovered exit to Factory (range 5) 6770 | -7/Lower Caves | Imp. Deuterium Engine reconfigured into Item Mimic 6975 | -7/Lower Caves | Encountered a Warlord checkpoint 7044 | -7/Lower Caves | X0-1V1 vaporized surrounding terrain (radius 20) 7047 | -7/Lower Caves | Attracted the attention of an 0b10 base 7087 | -7/Lower Caves | Learned 8 Research zone layouts 7087 | -7/Lower Caves | Learned location of 1 exit from Research 7277 | -7/Lower Caves | X0-1V1 activates XOMVISION 7368 | -7/Lower Caves | Discovered new exit (range 8) 7553 | -7/Lower Caves | Learned Factory emergency access door positions 7582 | -7/Lower Caves | Sensors blinded by X0-1V1 7649 | -7/Lower Caves | Identified exit to Data Miner 7651 | -7/Lower Caves | Entered Data Miner 7651 | -7/Data Miner | Discovered new exit (range 6) 7682 | -7/Data Miner | Met Data Miner 7727 | -7/Data Miner | Learned location of Section 7 (-3) 7727 | -7/Data Miner | Acquired the access code to Warlord's prototype stash 7739 | -7/Data Miner | Received God Mode back door access code from Data Miner 7775 | -7/Data Miner | Identified exit to Proximity Caves 7776 | -7/Data Miner | Entered Proximity Caves 7779 | -6/Proximity Caves | Spotter reported a threat 7781 | -6/Proximity Caves | Spotter reported a threat 7787 | -6/Proximity Caves | Spotted B-75 Beast 7812 | -6/Proximity Caves | Learned 4 Factory zone layouts 7862 | -6/Proximity Caves | Attracted the attention of an 0b10 outpost 7925 | -6/Proximity Caves | Lost 3 parts (1p1n1u) 7948 | -6/Proximity Caves | Destroyed 7 combat bots 8158 | -6/Proximity Caves | Weapon slot count temporarily expanded by X0-1V1 (+3) 8176 | -6/Proximity Caves | System corruption reached 10% 8221 | -6/Proximity Caves | X0-1V1 sent hostile G-50 Soldier (x5) 8453 | -6/Proximity Caves | Build established: Scavenger-Executioner 8547 | -6/Proximity Caves | Learned Factory stockpile data 8885 | -6/Proximity Caves | Discovered exit to Factory (range 8) 8902 | -6/Proximity Caves | Entered Factory 8902 | -6/Factory | Evolved 2 slots: Utility x2 8904 | -6/Factory | Loaded intel: 71 trap records 8907 | -6/Factory | Loaded intel: 25 terminal locations 8927 | -6/Factory | X0-1V1 sent hostile H-55 Commando (x2) 8948 | -6/Factory | X0-1V1 sent allied Y-54 Guardian (x2) 8998 | -6/Factory | X0-1V1 made a cryptic comment about sterilization and BL-4Z3 9000 | -6/Factory | X0-1V1 foreshadows a heat wave 9050 | -6/Factory | X0-1V1 sent you into danger 9093 | -6/Factory | Identified exit to Factory 9093 | -6/Factory | X0-1V1 revealed exit location to -5/Factory 9098 | -6/Factory | Weapon slot count reverted to normal (-3) 9106 | -6/Factory | Forcibly received Sfc. Transmogifier from X0-1V1 9116 | -6/Factory | X0-1V1 upgraded hostiles (x1) 9118 | -6/Factory | Lost 5 parts (1n1u3w) 9150 | -6/Factory | Sterilization system engaged 9150 | -6/Factory | Non-combat units ordered to evacuate 9195 | -6/Factory | Lost 4 parts (2n1u1w) 9237 | -6/Factory | Ambient heat levels rising (+10) 9250 | -6/Factory | Combat units ordered to evacuate 9415 | -6/Factory | Ambient heat levels rising (+10) 9450 | -6/Factory | Ambient heat levels rising (+10) 9479 | -6/Factory | Entered another Factory area 9479 | -5/Factory | Evolved 2 slots: Utility x2 9579 | -5/Factory | Identified exit to Factory 9579 | -5/Factory | X0-1V1 revealed exit location to -4/Factory 9888 | -5/Factory | Build established: Tank 9912 | -5/Factory | X0-1V1 sent hostile Fireman (x2) 10109 | -5/Factory | X0-1V1 whisked you away to safety 10160 | -5/Factory | Central database locked down 10196 | -5/Factory | X0-1V1 sent you to a vault 10377 | -5/Factory | X0-1V1 added 0b10 threat records associated with you (minor) 10418 | -5/Factory | X0-1V1 enhanced Transport squad support 10465 | -5/Factory | P-70 Sage assimilated allied Assassin 6b 10865 | -5/Factory | Identified exit to Upper Caves 10884 | -5/Factory | X0-1V1 revealed exit location to -4/Factory 10897 | -5/Factory | Discovered exit to Factory (range 5) 11185 | -5/Factory | X0-1V1 announced a LAN party 11242 | -5/Factory | Entered Upper Caves 11327 | -5/Upper Caves | System corruption reached 10% 11401 | -5/Upper Caves | Found DCF Scrap (13 items) 11801 | -5/Upper Caves | Destroyed 9 combat bots 11879 | -5/Upper Caves | Attracted the attention of an 0b10 base 11903 | -5/Upper Caves | Identified exit to Upper Caves 11903 | -5/Upper Caves | X0-1V1 revealed exit location to -5/Upper Caves 11947 | -5/Upper Caves | Learned Armory garrison access intel 11947 | -5/Upper Caves | Learned Extension garrison access intel 11947 | -5/Upper Caves | Learned Factory garrison access intel 12410 | -5/Upper Caves | Entered another Upper Caves area 12420 | -5/Upper Caves | Identified exit to Zhirov 12420 | -5/Upper Caves | X0-1V1 revealed exit location to -5/Zhirov 12442 | -5/Upper Caves | X0-1V1 activates XOMVISION 12493 | -5/Upper Caves | X0-1V1 sent you into danger 12498 | -5/Upper Caves | X0-1V1 revealed exit location to -4/Factory 12582 | -5/Upper Caves | Found Prototype Special Weapon 12599 | -5/Upper Caves | Identified Mak. Laser Shovel 12687 | -5/Upper Caves | Found Chaos Jack 12740 | -5/Upper Caves | Found Hvy. Scimitar of Distortion 12813 | -5/Upper Caves | X0-1V1 activates XOMVISION 12844 | -5/Upper Caves | X0-1V1 mutated your Weapon slot to Utility slot 12908 | -5/Upper Caves | Spotted B-75 Beast 12919 | -5/Upper Caves | X0-1V1 sent allied B-99 Colossus (x1) 13008 | -5/Upper Caves | Ambushed by wild Derelicts 13134 | -5/Upper Caves | Build established: Mutant 13171 | -5/Upper Caves | Learned location of 1 exit from Factory 13189 | -5/Upper Caves | X0-1V1 vaporized surrounding terrain (radius 23) 13244 | -5/Upper Caves | Entered Zhirov 13244 | -5/Zhirov | Accompanied by 1 ally 13245 | -5/Zhirov | Discovered new exit (range 5) 13285 | -5/Zhirov | Met Zhirov 13308 | -5/Zhirov | Learned location of Quarantine (-3) 13308 | -5/Zhirov | Learned location of Testing (-2) 13308 | -5/Zhirov | Learned location of Command (-1) 13328 | -5/Zhirov | Zhirov requested help retrieving the SGEMP Prototype 13355 | -5/Zhirov | Found Alien Artifact 13355 | -5/Zhirov | Identified Integrated Dissipator 13355 | -5/Zhirov | Installed Integrated Dissipator, increased core heat dissipation (+20) 13370 | -5/Zhirov | Found Alien Artifact 13551 | -5/Zhirov | Entered Proximity Caves 13551 | -4/Proximity Caves | Accompanied by 1 ally 13626 | -4/Proximity Caves | Learned location of 1 exit from Research 13744 | -4/Proximity Caves | Spotted B-86 Titan 13777 | -4/Proximity Caves | Allies destroyed B-86 Titan 13831 | -4/Proximity Caves | Build established: Tank 14201 | -4/Proximity Caves | Discovered exit to Factory (range 10) 14214 | -4/Proximity Caves | Attracted the attention of an 0b10 checkpoint 14217 | -4/Proximity Caves | Entered Factory 14217 | -4/Factory | Evolved 2 slots: Utility x1, Weapon x1 14218 | -4/Factory | Identified exit to Extension 14219 | -4/Factory | Loaded intel: 4 garrison access locations 14449 | -4/Factory | X0-1V1 sent you to a vault 14457 | -4/Factory | X0-1V1 put everyone to sleep 14461 | -4/Factory | Discovered new exit (range 6) 14488 | -4/Factory | Identified exit to Upper Caves 14653 | -4/Factory | X0-1V1 sent you into danger 14922 | -4/Factory | Entered Upper Caves 15431 | -4/Upper Caves | Attracted the attention of an 0b10 checkpoint 15487 | -4/Upper Caves | Identified exit to Upper Caves 15487 | -4/Upper Caves | X0-1V1 revealed exit location to -4/Upper Caves 15548 | -4/Upper Caves | Entered a destroyed Warlord outpost 15723 | -4/Upper Caves | Sensors blinded by X0-1V1 15847 | -4/Upper Caves | Entered another Upper Caves area 15848 | -4/Upper Caves | Identified exit to Warlord 16001 | -4/Upper Caves | Build established: Skirmisher 16097 | -4/Upper Caves | Learned Research interactive machine intel 16137 | -4/Upper Caves | X0-1V1 activates XOMVISION 16318 | -4/Upper Caves | Identified exit to Research 16318 | -4/Upper Caves | X0-1V1 revealed exit location to -3/Research 16356 | -4/Upper Caves | System corruption reached 10% 16424 | -4/Upper Caves | X0-1V1 vaporized surrounding terrain (radius 22) 16615 | -4/Upper Caves | Attracted the attention of an 0b10 checkpoint 16615 | -4/Upper Caves | Entered Warlord 16615 | -4/Warlord | Accompanied by 1 ally 16660 | -4/Warlord | System corruption cleaned by Quarantine Array 16993 | -4/Warlord | Visited the Vortex Lab 17007 | -4/Warlord | Warlord's base attacked by MAIN.C 17104 | -4/Warlord | Build established: Commander-Skirmisher 17295 | -4/Warlord | Found Prototype Device 17295 | -4/Warlord | Identified Exp. Phase Shifter 17303 | -4/Warlord | Found Prototype Processor 17303 | -4/Warlord | Identified Exp. Target Analyzer 17306 | -4/Warlord | Found Prototype Device 17306 | -4/Warlord | Identified Exp. Focal Shield 17323 | -4/Warlord | Found Prototype Reactor 17357 | -4/Warlord | Warlord forces counterattacked 17373 | -4/Warlord | X0-1V1 vaporized surrounding terrain (radius 22) 17378 | -4/Warlord | Met Warlord 17482 | -4/Warlord | X0-1V1 vaporized surrounding terrain (radius 18) 17583 | -4/Warlord | Build established: Commander-Tank 17682 | -4/Warlord | Warlord base infiltrated, sounded retreat 17683 | -4/Warlord | Enhanced Grunt warped into view 17683 | -4/Warlord | Enhanced Grunt warped into view 17683 | -4/Warlord | Enhanced Grunt warped into view 17683 | -4/Warlord | Enhanced Demolisher warped into view 17683 | -4/Warlord | Enhanced Demolisher warped into view 17683 | -4/Warlord | Enhanced Demolisher warped into view 17687 | -4/Warlord | P-70 Sage assimilated allied 1R-TUQ(g) 17708 | -4/Warlord | X0-1V1 rewrote Assassin 7a IFF filter 17720 | -4/Warlord | Spotted B-86 Titan 17724 | -4/Warlord | Spotted B-90 Cyclops 17739 | -4/Warlord | Lost 5 allies 17822 | -4/Warlord | Destroyed 13 combat bots 17832 | -4/Warlord | Spotted Striker 17839 | -4/Warlord | Spotted Striker 17858 | -4/Warlord | Spotted Striker 17875 | -4/Warlord | Discovered new exit (range 14) 17885 | -4/Warlord | Lost 13 allies 17891 | -4/Warlord | Identified exit to Proximity Caves 17944 | -4/Warlord | Entered Proximity Caves 17944 | -3/Proximity Caves | Accompanied by 4 allies 18010 | -3/Proximity Caves | P-80 Master assimilated allied Sentinel 7a 18046 | -3/Proximity Caves | Destroyed 10 combat bots 18130 | -3/Proximity Caves | Spotted B-86 Titan 18130 | -3/Proximity Caves | X0-1V1 sent you into danger 18158 | -3/Proximity Caves | Destroyed B-86 Titan 18167 | -3/Proximity Caves | Found Hvy. Reflective Plating 18180 | -3/Proximity Caves | Lost 6 parts (1n2u3w) 18286 | -3/Proximity Caves | Sensors blinded by X0-1V1 18367 | -3/Proximity Caves | Received a Behemoth hack from an annoying Tinkerer 18396 | -3/Proximity Caves | Attracted the attention of an 0b10 checkpoint 18521 | -3/Proximity Caves | Build established: Tank 18563 | -3/Proximity Caves | X0-1V1 sent you into danger 18568 | -3/Proximity Caves | Attracted the attention of an 0b10 base 18610 | -3/Proximity Caves | Destroyed 7 combat bots 18677 | -3/Proximity Caves | Discovered exit to Research (range 16) 18697 | -3/Proximity Caves | Entered Research 18697 | -3/Research | Evolved 2 slots: Power x1, Weapon x1 18698 | -3/Research | Identified exit to Research 18698 | -3/Research | Identified exit to Armory 18700 | -3/Research | Loaded intel: 39 interactive machine locations 18819 | -3/Research | Found Exp. Target Analyzer 19113 | -3/Research | Build established: Gunner 19307 | -3/Research | Found Prototype Device 19307 | -3/Research | Identified Exp. Thermal Defense Suite 19362 | -3/Research | Found Fusion Bomb Launcher 19368 | -3/Research | Found Hvy. Reactive Plating 19418 | -3/Research | Identified exit to Quarantine 19418 | -3/Research | X0-1V1 revealed exit location to -3/Quarantine 19836 | -3/Research | Incoming investigation squad redirected 19950 | -3/Research | Crushed by falling debris 19968 | -3/Research | Crushed by falling debris 19968 | -3/Research | System corruption reached 10% 19983 | -3/Research | Crushed by falling debris 19983 | -3/Research | Self-destructed Last Messages --------------- 19950_ The unstable cave ceiling collapses. 19950_ Crushed by falling debris. 19950_ Adv. Sensor Array destroyed. 19950_ System corrupted by crushing effect (+4). 19968_ The unstable cave ceiling collapses. 19968_ Crushed by falling debris. 19968_ Rnf. Antimatter Reactor destroyed. 19968_ System corrupted by crushing effect (+4). 19968_ Adv. Signal Interpreter destroyed. 19968_ X0-1V1 is amused. 19980_ System corrupted: Matter fused (-5). 19983_ The unstable cave ceiling collapses. 19983_ Crushed by falling debris. 19983_ Wave Gun destroyed. 19983_ System corrupted by crushing effect (+2). 19983_ Quantum Rifle destroyed. 19983_ System corrupted by crushing effect (+3). 19983_ Coolant Network destroyed. 19983_ System corrupted by crushing effect (+1). 19983_ X0-1V1 thinks this is hilarious! Map ----- +----------------------------------------------------+ | ????????????????????????????????????????# #??????? | | ????????????????????????????????????????# #??????? | | ????????????????????????????????????????# #??????? | | ????????????????????????????????????????# #??????? | | ?????????????????????????????????????####+##### | | ?????????????????????????????????????# ## | | ???T?????????????????????????????????# ## | | ?????????????????????????????????????# ## | | ?????????????????????????????????????# ## | | ?????????????????????????????????????# ## | | ?????????????????????????????????????# ## | | ?????????????????????????????????????# ####+ | | ?????????????????????????????????????# # | | ?????????????????????????????????????# + | | ?????????????????????????????????????# # | | ?????????????????????????????????????# / | | ??????????????????????#?" " " "??????# ## | | ?????????????????????## "" ????# ## | | ????????????????????? ????## ## | | ????????????????????? >????#" ## | | ?????????????????????? ????#" ## | | ??????????????????????# "?????## ## | | ???????????????????????T? " " ???????#####+#### | | ???????????????????????#"#"#"#???????????# #??# | | ???????????????????????#"#"#"##??????????# #??# | | ????????????????????????#@#"""##?????????# #??# | | ????????????????????????###### ##????????# #??# | | ?????????????????????????????#####???????# #?## | | ??????????????????????????????## ##??????# #?# | | ???????????????????????????????## ##?????# #??T | | ????????????????????????????????## ##????# #??# | | ?????????????????????????????????## ##???# #??# | | ??????????????????????????????????## ###?# #??# | | ???????????????????????????????????###"###+#### | | ????????????????????????????????????## [ # | | ????????????????????????????????????## # | | ????????????????????????????????????## # | | ?????????????????????? ????????????### # | | ??????????????????????? ???????????# # # | | ???????????????????????? #?????????# # #= | | ????????????????????????# #????????# # + = | | ?????????????????????????# #???????### #% | | ??????????????????????????# #??????# # # | | ???????????????????????????# #?????########/### | | ????????????????????????????# ###??### #%# | | ?????????????????????????????###"###"# #%## | | ?????????????????????????????## # # ## T | | ??????????????????????????????# # + "" | | ??????????????????????????????# # #### | | ??????????????????????????????# ! # #??# | +----------------------------------------------------+ Best States ------------- Heat Dissipation 313 Energy Generation 49 Energy Capacity 1725 Matter Stores 1000 Matter Capacity 1000 Sight Range 22 Robot Scan Range 16 Terrain Scan Density 10 Jamming Range 14 Armor Coverage 1200 Resistance: KI 40 Resistance: TH 25 Resistance: EM 20 Weapon Cycling 25 Melee Speed Boost 20 Phase Shifting 20 Evasion (%) 60 Targeting Accuracy 6 Target Analysis 10 Armor Integrity Analysis 40 Recoil Reduction 4 Particle Charging 25 Kinecelleration 30 Offensive Hacking 10 Item Schematics ----------------- Combat Drone Bay | -7/Data Miner | Free Lgt. Regenerative Plating | -7/Data Miner | Free Cld. Cesium-ion Thruster | -7/Data Miner | Free Thermal Defense Suite | -7/Data Miner | Free Shock Maul | -7/Data Miner | Free Imp. Kinecellerator | -7/Data Miner | Free Gyrokinetic Inverter | -7/Data Miner | Free Tesla Rifle | -7/Data Miner | Free Coil Gun | -7/Data Miner | Free Imp. Shock Absorption System | -7/Data Miner | Free KE Penetrator | -7/Data Miner | Free Railgun | -7/Data Miner | Free Adv. Thermal Shield | -7/Data Miner | Free Robot Schematics ------------------ L-41 Fighter | -7/Data Miner | Free G-47 Trooper | -7/Data Miner | Free M-14 Sweeper | -7/Data Miner | Free A-15 Conveyor | -7/Data Miner | Free S-27 Virus | -7/Data Miner | Free G-50 Soldier | -7/Data Miner | Free Fabricated ------------ Nothing Repaired ---------- Lgt. Treads | 7% | -10/Materials Lgt. Treads | 37% | -10/Materials Adv. Treads | 57% | -7/Factory Studied --------- Hvy. Rocket Launcher | -7/Factory | Hacked Chainsword | -7/Factory | Hacked Coil Gun | -5/Factory | Hacked Alien Tech Used ----------------- Integrated Dissipator Achievements -------------- None Challenges ------------ None Game ------ Seed PoweredNanofilamentsShield Manual? 0 Play Time 03:47:10 Cumulative 483.2 hours Start 2026.08.25 @ 14:50:49 End 2026.08.30 @ 16:25:29 Sessions 10 Manual Loads 0 Difficulty Rogue Special Mode None Game No. 370 Rogue 370 Adventurer 0 Explorer 0 Win Type - Total 8 Types 6/0/0/0/0/0/0/2/0/0 Lore% 72 Gallery% 71 Achievement% 60 Wizard Run 0 Options --------- Layout 1 ASCII 0 Keyboard 1 Movement Arrows Keybinds 0 Fullscreen 1 Font 36/Smallcaps Map View 50x40 Zoom Use 0% Tactical HUD 1 Map Filters NONE Filters NONE Steam 1 RUN: c1cf07f5-a20f-45b5-84b7-a37af3db7521